[Event "Early-Titled-Tuesday-Blitz-October-03-2023"]
[Site "Chess.com"]
[Date "2023.10.03"]
[Round "6"]
[White "Man-Chuk"]
[Black "LeoLV10"]
[Result "1-0"]
[WhiteElo "2775"]
[BlackElo "2574"]
[TimeControl "180+1"]
[EndTime "9:07:31 PDT"]
[Termination "Man-Chuk won by resignation"]

1. e4 {[%clk 0:03:00.9]} 1... c6 {[%clk 0:02:59.8]} 2. d4 {[%clk 0:02:59.9]}
2... d5 {[%clk 0:03:00.7]} 3. e5 {[%clk 0:03:00.4]} 3... c5 {[%clk 0:03:00.8]}
4. Nf3 {[%clk 0:02:57.9]} 4... e6 {[%clk 0:02:57.3]} 5. c3 {[%clk 0:02:53.9]}
5... Nc6 {[%clk 0:02:56.2]} 6. Be2 {[%clk 0:02:54.1]} 6... Qb6 {[%clk
0:02:50.8]} 7. O-O {[%clk 0:02:42.9]} 7... Bd7 {[%clk 0:02:51]} 8. a3 {[%clk
0:02:38.6]} 8... Nge7 {[%clk 0:02:50.2]} 9. dxc5 {[%clk 0:02:35.8]} 9... Qxc5
{[%clk 0:02:49.7]} 10. b4 {[%clk 0:02:29.3]} 10... Qb6 {[%clk 0:02:49.8]} 11. c4
{[%clk 0:02:27.4]} 11... dxc4 {[%clk 0:02:45.6]} 12. Nbd2 {[%clk 0:02:24.6]}
12... Qc7 {[%clk 0:02:41.7]} 13. Nxc4 {[%clk 0:02:23.8]} 13... Nd5 {[%clk
0:02:39.2]} 14. Bb2 {[%clk 0:02:19.7]} 14... Be7 {[%clk 0:02:31]} 15. Rc1 {[%clk
0:02:13.5]} 15... a6 {[%clk 0:02:27.5]} 16. Nd6+ {[%clk 0:01:45]} 16... Bxd6
{[%clk 0:02:21.3]} 17. exd6 {[%clk 0:01:45.9]} 17... Qxd6 {[%clk 0:02:21.6]} 18.
Bxg7 {[%clk 0:01:46.1]} 18... Rg8 {[%clk 0:02:22.2]} 19. Bb2 {[%clk 0:01:33.1]}
19... Qe7 {[%clk 0:02:19.5]} 20. Qd2 {[%clk 0:01:25.2]} 20... O-O-O {[%clk
0:01:57.7]} 21. Ne5 {[%clk 0:01:23.9]} 21... Kb8 {[%clk 0:01:54.6]} 22. Bf3
{[%clk 0:01:23.8]} 22... Nxe5 {[%clk 0:01:47.8]} 23. Bxe5+ {[%clk 0:01:23.8]}
23... Ka8 {[%clk 0:01:48.1]} 24. Rfd1 {[%clk 0:01:02.6]} 24... Bc6 {[%clk
0:01:46.6]} 25. Qe2 {[%clk 0:01:00.8]} 25... f6 {[%clk 0:01:34.1]} 26. Bg3
{[%clk 0:01:00.5]} 26... Qd7 {[%clk 0:01:25.5]} 27. Re1 {[%clk 0:00:38.6]} 27...
e5 {[%clk 0:01:17.1]} 28. Rc5 {[%clk 0:00:38.8]} 28... Qe6 {[%clk 0:01:09.3]}
29. Rec1 {[%clk 0:00:37.5]} 29... Kb8 {[%clk 0:00:59.7]} 30. Rxc6 {[%clk
0:00:28.9]} 30... bxc6 {[%clk 0:00:48.8]} 31. Qxa6 {[%clk 0:00:29.5]} 31... Qc8
{[%clk 0:00:28.6]} 32. Qc4 {[%clk 0:00:21.8]} 32... Qb7 {[%clk 0:00:26.9]} 33.
h4 {[%clk 0:00:18.4]} 33... Rge8 {[%clk 0:00:25]} 34. a4 {[%clk 0:00:14.2]}
34... f5 {[%clk 0:00:22.6]} 35. b5 {[%clk 0:00:11.7]} 35... Nb6 {[%clk
0:00:15.5]} 36. Qxc6 {[%clk 0:00:11.3]} 36... Qxc6 {[%clk 0:00:14.6]} 37. Bxc6
{[%clk 0:00:12.2]} 37... Re7 {[%clk 0:00:13.3]} 38. a5 {[%clk 0:00:12.3]} 38...
f4 {[%clk 0:00:12.2]} 39. axb6 {[%clk 0:00:08]} 39... fxg3 {[%clk 0:00:10.8]}
40. Ra1 {[%clk 0:00:08.2]} 40... Rb7 {[%clk 0:00:10.2]} 41. Bxb7 {[%clk
0:00:06.2]} 41... Kxb7 {[%clk 0:00:11.1]} 42. fxg3 {[%clk 0:00:05.3]} 42... Kxb6
{[%clk 0:00:11.1]} 43. Rb1 {[%clk 0:00:03.7]} 43... Rd3 {[%clk 0:00:08.5]} 44.
Kf2 {[%clk 0:00:04.1]} 44... h5 {[%clk 0:00:08.7]} 45. Rb4 {[%clk 0:00:03.9]}
45... Rd5 {[%clk 0:00:08.6]} 46. Kf3 {[%clk 0:00:04]} 46... Rd3+ {[%clk
0:00:07.5]} 47. Kf2 {[%clk 0:00:04.6]} 47... Rd5 {[%clk 0:00:07.6]} 48. Ke3
{[%clk 0:00:05.2]} 48... Rxb5 {[%clk 0:00:07.5]} 49. Rxb5+ {[%clk 0:00:05.3]}
49... Kxb5 {[%clk 0:00:07.6]} 50. Ke4 {[%clk 0:00:06.2]} 50... Kc6 {[%clk
0:00:08.1]} 51. Kxe5 {[%clk 0:00:07.1]} 51... Kd7 {[%clk 0:00:08.7]} 52. Kf5
{[%clk 0:00:08]} 52... Ke7 {[%clk 0:00:09.2]} 53. Kg5 {[%clk 0:00:08.9]} 53...
Kf7 {[%clk 0:00:09.9]} 54. Kxh5 {[%clk 0:00:09.8]} 1-0

[Event "Early-Titled-Tuesday-Blitz-October-03-2023"]
[Site "Chess.com"]
[Date "2023.10.03"]
[Round "6"]
[White "zverr1"]
[Black "IwkooO"]
[Result "0-1"]
[WhiteElo "2511"]
[BlackElo "2660"]
[TimeControl "180+1"]
[EndTime "9:07:31 PDT"]
[Termination "IwkooO won on time"]

1. e4 {[%clk 0:03:00.9]} 1... a6 {[%clk 0:02:53.2]} 2. d4 {[%clk 0:03:00.4]}
2... e6 {[%clk 0:02:53.5]} 3. Bd3 {[%clk 0:02:58.8]} 3... d5 {[%clk 0:02:53.1]}
4. Nc3 {[%clk 0:02:46.4]} 4... dxe4 {[%clk 0:02:49.1]} 5. Bxe4 {[%clk
0:02:47.3]} 5... Nf6 {[%clk 0:02:48.5]} 6. Bf3 {[%clk 0:02:46.8]} 6... c5 {[%clk
0:02:42.9]} 7. Nge2 {[%clk 0:02:45.3]} 7... Nc6 {[%clk 0:02:43.2]} 8. Be3 {[%clk
0:02:44.7]} 8... cxd4 {[%clk 0:02:42.3]} 9. Nxd4 {[%clk 0:02:44.1]} 9... Ne5
{[%clk 0:02:42.9]} 10. Qe2 {[%clk 0:02:31.3]} 10... Bb4 {[%clk 0:02:35.2]} 11.
O-O {[%clk 0:02:21.4]} 11... Nxf3+ {[%clk 0:02:33.5]} 12. Nxf3 {[%clk
0:02:19.2]} 12... O-O {[%clk 0:02:31.8]} 13. Qc4 {[%clk 0:02:04.5]} 13... Qe7
{[%clk 0:02:27]} 14. a3 {[%clk 0:01:57]} 14... Bd6 {[%clk 0:02:20.7]} 15. Rfd1
{[%clk 0:01:47.2]} 15... Bd7 {[%clk 0:02:03.3]} 16. Bg5 {[%clk 0:00:59.9]} 16...
Bc6 {[%clk 0:01:52.3]} 17. Bxf6 {[%clk 0:00:49.8]} 17... gxf6 {[%clk 0:01:53.2]}
18. Ne4 {[%clk 0:00:49.2]} 18... Bc7 {[%clk 0:01:48]} 19. Qc5 {[%clk 0:00:35]}
19... Qxc5 {[%clk 0:01:44.3]} 20. Nxc5 {[%clk 0:00:35.9]} 20... Rfd8 {[%clk
0:01:44.4]} 21. c4 {[%clk 0:00:20.6]} 21... Bb6 {[%clk 0:01:32.9]} 22. Nd3
{[%clk 0:00:15.6]} 22... Rac8 {[%clk 0:01:28.4]} 23. b3 {[%clk 0:00:14.2]} 23...
Be4 {[%clk 0:01:27.8]} 24. Nf4 {[%clk 0:00:09.9]} 24... Bc7 {[%clk 0:01:26.2]}
25. Nh5 {[%clk 0:00:07.5]} 25... f5 {[%clk 0:01:23.5]} 26. Nf6+ {[%clk
0:00:05.9]} 26... Kg7 {[%clk 0:01:23.5]} 27. Nxe4 {[%clk 0:00:06.5]} 27... fxe4
{[%clk 0:01:24]} 28. Ne1 {[%clk 0:00:02.7]} 28... Be5 {[%clk 0:01:24.1]} 29.
Rab1 {[%clk 0:00:03.2]} 29... f5 {[%clk 0:01:22.8]} 30. Nc2 {[%clk 0:00:03.4]}
30... Kf6 {[%clk 0:01:22.6]} 31. Kf1 {[%clk 0:00:03.1]} 31... h5 {[%clk
0:01:19.4]} 32. g3 {[%clk 0:00:02.3]} 32... h4 {[%clk 0:01:19.4]} 33. Ne3 {[%clk
0:00:02.4]} 33... hxg3 {[%clk 0:01:16.8]} 34. hxg3 {[%clk 0:00:03.3]} 34... Rd3
{[%clk 0:01:06.4]} 35. Rxd3 {[%clk 0:00:02.4]} 35... exd3 {[%clk 0:01:07.3]} 36.
Rd1 {[%clk 0:00:02.3]} 36... Rd8 {[%clk 0:01:07.9]} 37. Ke1 {[%clk 0:00:02]}
37... Bc3+ {[%clk 0:01:07.3]} 38. Kf1 {[%clk 0:00:02.5]} 38... a5 {[%clk
0:01:02.8]} 39. a4 {[%clk 0:00:02.2]} 39... Bb4 {[%clk 0:01:01.8]} 40. Kg2
{[%clk 0:00:02.3]} 40... Bc5 {[%clk 0:00:59.9]} 41. Kf3 {[%clk 0:00:02.3]} 41...
Rd6 {[%clk 0:01:00.5]} 42. Nf1 {[%clk 0:00:01.8]} 42... e5 {[%clk 0:01:00.2]}
43. Ne3 {[%clk 0:00:02.1]} 43... e4+ {[%clk 0:01:00.3]} 44. Kg2 {[%clk
0:00:01.7]} 44... Bxe3 {[%clk 0:01:00.6]} 45. fxe3 {[%clk 0:00:02.6]} 45... Rb6
{[%clk 0:01:00.9]} 46. Rb1 {[%clk 0:00:02.4]} 46... Ke5 {[%clk 0:01:01.4]} 47.
Kf2 {[%clk 0:00:02.3]} 47... Rh6 {[%clk 0:01:00.4]} 48. Kg2 {[%clk 0:00:02.2]}
48... Rd6 {[%clk 0:00:53.1]} 49. Kf2 {[%clk 0:00:02.1]} 49... Rb6 {[%clk
0:00:47.7]} 50. Ke1 {[%clk 0:00:01.9]} 50... Rh6 {[%clk 0:00:45.6]} 51. Kd2
{[%clk 0:00:02.5]} 51... Rh2+ {[%clk 0:00:45]} 52. Kc1 {[%clk 0:00:01.6]} 52...
Kd6 {[%clk 0:00:33.8]} 53. Rb2 {[%clk 0:00:01.5]} 53... Rxb2 {[%clk 0:00:29.3]}
54. Kxb2 {[%clk 0:00:02.4]} 54... Kc5 {[%clk 0:00:29.6]} 55. Kc3 {[%clk
0:00:01.2]} 55... b6 {[%clk 0:00:29.4]} 56. Kb2 {[%clk 0:00:01.2]} 56... Kb4
{[%clk 0:00:30]} 57. Ka2 {[%clk 0:00:01.3]} 57... Kc3 {[%clk 0:00:30.5]} 58. c5
{[%clk 0:00:01.1]} 58... bxc5 {[%clk 0:00:30.6]} 0-1

[Event "Early-Titled-Tuesday-Blitz-October-03-2023"]
[Site "Chess.com"]
[Date "2023.10.03"]
[Round "6"]
[White "JACK_BAU3R"]
[Black "Mihajlovskij"]
[Result "1-0"]
[WhiteElo "2019"]
[BlackElo "2263"]
[TimeControl "180+1"]
[EndTime "9:07:36 PDT"]
[Termination "JACK_BAU3R won by resignation"]

1. d4 {[%clk 0:03:00.9]} 1... Nf6 {[%clk 0:02:59.9]} 2. c3 {[%clk 0:03:01]} 2...
g6 {[%clk 0:02:59.9]} 3. Bf4 {[%clk 0:03:01.5]} 3... Bg7 {[%clk 0:03:00.8]} 4.
Nd2 {[%clk 0:03:00.5]} 4... O-O {[%clk 0:03:01.7]} 5. e4 {[%clk 0:03:00.8]} 5...
d6 {[%clk 0:03:02.6]} 6. Be2 {[%clk 0:03:00.7]} 6... Nbd7 {[%clk 0:02:59.6]} 7.
h4 {[%clk 0:03:00.5]} 7... e5 {[%clk 0:03:00.3]} 8. dxe5 {[%clk 0:02:58.5]} 8...
dxe5 {[%clk 0:03:01.1]} 9. Be3 {[%clk 0:02:58.9]} 9... Qe7 {[%clk 0:03:00]} 10.
h5 {[%clk 0:02:58.8]} 10... Nc5 {[%clk 0:02:57.1]} 11. f3 {[%clk 0:02:57.7]}
11... Rd8 {[%clk 0:02:56.4]} 12. Qc2 {[%clk 0:02:58.2]} 12... Be6 {[%clk
0:02:53.2]} 13. hxg6 {[%clk 0:02:53.1]} 13... fxg6 {[%clk 0:02:50.6]} 14. Nh3
{[%clk 0:02:53.5]} 14... h6 {[%clk 0:02:41.3]} 15. Nf2 {[%clk 0:02:53.2]} 15...
h5 {[%clk 0:02:40.2]} 16. O-O-O {[%clk 0:02:48.2]} 16... Bxa2 {[%clk 0:02:39]}
17. b3 {[%clk 0:02:48.3]} 17... Na4 {[%clk 0:01:07.8]} 18. bxa4 {[%clk
0:01:53.4]} 18... Qa3+ {[%clk 0:01:05]} 19. Qb2 {[%clk 0:01:53.7]} 19... Qxa4
{[%clk 0:01:05.4]} 20. c4 {[%clk 0:01:30.3]} 20... Nd7 {[%clk 0:00:47.3]} 21.
Nd3 {[%clk 0:01:25.8]} 21... Nb6 {[%clk 0:00:35.1]} 22. Nb4 {[%clk 0:01:20.3]}
22... Rxd2 {[%clk 0:00:27.7]} 23. Rxd2 {[%clk 0:00:49.2]} 23... Bxc4 {[%clk
0:00:22.6]} 24. Bxb6 {[%clk 0:00:33]} 24... Bxe2 {[%clk 0:00:19.9]} 25. Bxc7
{[%clk 0:00:32.9]} 25... Rc8 {[%clk 0:00:19.3]} 26. Rxe2 {[%clk 0:00:32.8]}
26... Rxc7+ {[%clk 0:00:19.1]} 27. Rc2 {[%clk 0:00:31.5]} 27... Rxc2+ {[%clk
0:00:18.6]} 28. Nxc2 {[%clk 0:00:31.6]} 28... Bf8 {[%clk 0:00:18.2]} 29. Rd1
{[%clk 0:00:24.2]} 29... b5 {[%clk 0:00:15.9]} 30. Rd8 {[%clk 0:00:21.9]} 30...
a5 {[%clk 0:00:08.5]} 31. Qa3 {[%clk 0:00:15.4]} 31... Qxa3+ {[%clk 0:00:06.8]}
32. Nxa3 {[%clk 0:00:15.7]} 32... b4 {[%clk 0:00:07.7]} 33. Nc4 {[%clk
0:00:15.4]} 33... Kg7 {[%clk 0:00:08]} 34. Nxa5 {[%clk 0:00:12.7]} 34... Bc5
{[%clk 0:00:07.2]} 35. Nb3 {[%clk 0:00:11]} 35... Be3+ {[%clk 0:00:06.5]} 36.
Kc2 {[%clk 0:00:11.6]} 36... Kf6 {[%clk 0:00:06.4]} 37. Kd3 {[%clk 0:00:11.9]}
37... Bf4 {[%clk 0:00:06.5]} 38. Rb8 {[%clk 0:00:11.3]} 38... Kg5 {[%clk
0:00:06.6]} 39. Ke2 {[%clk 0:00:10.8]} 39... Kh4 {[%clk 0:00:06.6]} 40. Rxb4
{[%clk 0:00:10.2]} 40... Kg3 {[%clk 0:00:07]} 41. Kf1 {[%clk 0:00:10.7]} 41...
g5 {[%clk 0:00:06.4]} 42. Rb5 {[%clk 0:00:09]} 42... g4 {[%clk 0:00:03]} 43. Ke2
{[%clk 0:00:03.9]} 43... Kxg2 {[%clk 0:00:02.8]} 44. fxg4 {[%clk 0:00:03.9]}
44... hxg4 {[%clk 0:00:03.7]} 45. Nc5 {[%clk 0:00:02.2]} 45... Bh2 {[%clk
0:00:02.8]} 46. Nd3 {[%clk 0:00:02.4]} 46... g3 {[%clk 0:00:02.7]} 47. Nxe5
{[%clk 0:00:02.9]} 47... Kh1 {[%clk 0:00:02.3]} 48. Nf3 {[%clk 0:00:02.9]} 48...
g2 {[%clk 0:00:02.1]} 49. Rh5 {[%clk 0:00:02.3]} 49... g1=Q {[%clk 0:00:02.5]}
50. Rxh2+ {[%clk 0:00:02.4]} 50... Qxh2+ {[%clk 0:00:01.8]} 51. Nxh2 {[%clk
0:00:03.3]} 51... Kxh2 {[%clk 0:00:02.5]} 52. e5 {[%clk 0:00:04.2]} 52... Kg3
{[%clk 0:00:03.1]} 53. e6 {[%clk 0:00:05.1]} 1-0

[Event "Early-Titled-Tuesday-Blitz-October-03-2023"]
[Site "Chess.com"]
[Date "2023.10.03"]
[Round "6"]
[White "Bilan_Danila"]
[Black "Dmitry_Konenkin"]
[Result "1-0"]
[WhiteElo "2511"]
[BlackElo "2377"]
[TimeControl "180+1"]
[EndTime "9:07:38 PDT"]
[Termination "Bilan_Danila won on time"]

1. d4 {[%clk 0:02:54.7]} 1... d6 {[%clk 0:02:59]} 2. Nf3 {[%clk 0:02:53.1]} 2...
Bg4 {[%clk 0:02:58.5]} 3. e4 {[%clk 0:02:42.3]} 3... Nd7 {[%clk 0:02:58.1]} 4.
Be2 {[%clk 0:02:39.1]} 4... e5 {[%clk 0:02:57.5]} 5. c3 {[%clk 0:02:37.6]} 5...
Ngf6 {[%clk 0:02:56.3]} 6. Nbd2 {[%clk 0:02:37.3]} 6... Be7 {[%clk 0:02:55.4]}
7. O-O {[%clk 0:02:37.1]} 7... O-O {[%clk 0:02:55.4]} 8. Qc2 {[%clk 0:02:36.6]}
8... c6 {[%clk 0:02:55.2]} 9. Re1 {[%clk 0:02:30.1]} 9... Qc7 {[%clk 0:02:53.8]}
10. Nf1 {[%clk 0:02:28.5]} 10... Rfe8 {[%clk 0:02:49.9]} 11. Bg5 {[%clk
0:02:05.9]} 11... Bf8 {[%clk 0:02:46.1]} 12. Ne3 {[%clk 0:02:00.3]} 12... Bh5
{[%clk 0:02:32.7]} 13. dxe5 {[%clk 0:01:50.7]} 13... dxe5 {[%clk 0:02:30.7]} 14.
Nf5 {[%clk 0:01:35.8]} 14... h6 {[%clk 0:01:45.2]} 15. Bh4 {[%clk 0:01:24]}
15... g5 {[%clk 0:01:40.4]} 16. Nxg5 {[%clk 0:01:01.8]} 16... hxg5 {[%clk
0:01:28.3]} 17. Bxh5 {[%clk 0:00:57.4]} 17... gxh4 {[%clk 0:01:22.6]} 18. Be2
{[%clk 0:00:48.8]} 18... Nc5 {[%clk 0:01:11.9]} 19. Bc4 {[%clk 0:00:30.1]} 19...
b5 {[%clk 0:01:03.4]} 20. Bb3 {[%clk 0:00:25.7]} 20... Nxb3 {[%clk 0:00:52.7]}
21. axb3 {[%clk 0:00:25.6]} 21... Nh7 {[%clk 0:00:36.2]} 22. Qe2 {[%clk
0:00:20.2]} 22... f6 {[%clk 0:00:33.2]} 23. Qg4+ {[%clk 0:00:19.3]} 23... Ng5
{[%clk 0:00:29.9]} 24. Nxh4 {[%clk 0:00:16.7]} 24... Qh7 {[%clk 0:00:13.8]} 25.
Nf5 {[%clk 0:00:16]} 25... Kh8 {[%clk 0:00:12]} 26. h4 {[%clk 0:00:05.8]} 26...
Ne6 {[%clk 0:00:11.8]} 27. g3 {[%clk 0:00:05.3]} 27... Bc5 {[%clk 0:00:11.4]}
28. Kg2 {[%clk 0:00:04.3]} 28... Rg8 {[%clk 0:00:11.7]} 29. Qf3 {[%clk
0:00:04.7]} 29... Nf4+ {[%clk 0:00:11.8]} 30. Kh2 {[%clk 0:00:05]} 30... Ng6
{[%clk 0:00:07]} 31. Rad1 {[%clk 0:00:05]} 31... Rad8 {[%clk 0:00:06.8]} 32.
Rxd8 {[%clk 0:00:04.2]} 32... Rxd8 {[%clk 0:00:07.7]} 33. Kg2 {[%clk 0:00:04.8]}
33... Rg8 {[%clk 0:00:07.3]} 34. Kh2 {[%clk 0:00:04.8]} 34... Ne7 {[%clk
0:00:07]} 35. Ne3 {[%clk 0:00:02]} 35... Bxe3 {[%clk 0:00:06.5]} 36. Rxe3 {[%clk
0:00:02.2]} 36... Nc8 {[%clk 0:00:04.8]} 37. Qxf6+ {[%clk 0:00:02.4]} 37... Qg7
{[%clk 0:00:04.6]} 38. Qxc6 {[%clk 0:00:02.6]} 38... Ne7 {[%clk 0:00:04.8]} 39.
Qe6 {[%clk 0:00:02.6]} 39... Ng6 {[%clk 0:00:04.8]} 40. Qf5 {[%clk 0:00:02.6]}
40... Nxh4 {[%clk 0:00:04.1]} 41. Qh5+ {[%clk 0:00:02.2]} 41... Qh7 {[%clk
0:00:04.5]} 42. Qxh4 {[%clk 0:00:02.9]} 42... Qxh4+ {[%clk 0:00:04.2]} 43. gxh4
{[%clk 0:00:03.8]} 43... Rg4 {[%clk 0:00:04.4]} 44. Rg3 {[%clk 0:00:03.4]} 44...
Rxh4+ {[%clk 0:00:04.3]} 45. Rh3 {[%clk 0:00:03.6]} 45... Rxh3+ {[%clk
0:00:03.9]} 46. Kxh3 {[%clk 0:00:04.5]} 46... Kg7 {[%clk 0:00:04.6]} 47. Kg4
{[%clk 0:00:05.4]} 47... Kf6 {[%clk 0:00:05.3]} 48. f4 {[%clk 0:00:06]} 48... a5
{[%clk 0:00:05]} 49. fxe5+ {[%clk 0:00:05.9]} 49... Kxe5 {[%clk 0:00:05.9]} 50.
Kf3 {[%clk 0:00:06.6]} 50... b4 {[%clk 0:00:05.8]} 51. Ke3 {[%clk 0:00:06.5]}
1-0

[Event "Early-Titled-Tuesday-Blitz-October-03-2023"]
[Site "Chess.com"]
[Date "2023.10.03"]
[Round "6"]
[White "vladislavkovalev"]
[Black "Eagle_2019"]
[Result "1-0"]
[WhiteElo "2865"]
[BlackElo "2682"]
[TimeControl "180+1"]
[EndTime "9:07:39 PDT"]
[Termination "vladislavkovalev won by resignation"]

1. e4 {[%clk 0:02:47.2]} 1... c5 {[%clk 0:02:57.5]} 2. Nf3 {[%clk 0:02:47.3]}
2... e6 {[%clk 0:02:56.9]} 3. c3 {[%clk 0:02:47.4]} 3... Nf6 {[%clk 0:02:48]} 4.
e5 {[%clk 0:02:47.5]} 4... Nd5 {[%clk 0:02:47.1]} 5. d4 {[%clk 0:02:48.3]} 5...
cxd4 {[%clk 0:02:44.5]} 6. cxd4 {[%clk 0:02:49.2]} 6... d6 {[%clk 0:02:44.9]} 7.
Bc4 {[%clk 0:02:35.9]} 7... Nc6 {[%clk 0:02:43]} 8. O-O {[%clk 0:02:35.1]} 8...
Be7 {[%clk 0:02:35.8]} 9. Qe2 {[%clk 0:02:33.4]} 9... O-O {[%clk 0:02:30.6]} 10.
Nbd2 {[%clk 0:02:22.7]} 10... Qb6 {[%clk 0:02:13.2]} 11. Ne4 {[%clk 0:02:13.2]}
11... dxe5 {[%clk 0:02:03]} 12. dxe5 {[%clk 0:02:13.3]} 12... Bd7 {[%clk
0:01:57.8]} 13. Rd1 {[%clk 0:02:08.8]} 13... Rac8 {[%clk 0:01:54.7]} 14. Bg5
{[%clk 0:01:57.8]} 14... h6 {[%clk 0:01:06.2]} 15. Bxe7 {[%clk 0:01:56.7]} 15...
Ncxe7 {[%clk 0:01:05]} 16. Nd6 {[%clk 0:01:53.3]} 16... Rc7 {[%clk 0:01:04.5]}
17. Qe4 {[%clk 0:01:42.6]} 17... Bc6 {[%clk 0:00:58]} 18. Bd3 {[%clk 0:01:36]}
18... Ng6 {[%clk 0:00:50.2]} 19. Nd4 {[%clk 0:00:58.8]} 19... Nc3 {[%clk
0:00:37.1]} 20. Qe3 {[%clk 0:00:58.7]} 20... Nxd1 {[%clk 0:00:36.6]} 21. Rxd1
{[%clk 0:00:59.6]} 21... Bd5 {[%clk 0:00:23.2]} 22. b3 {[%clk 0:00:44]} 22...
Rd8 {[%clk 0:00:21.4]} 23. f4 {[%clk 0:00:43.3]} 23... Nh4 {[%clk 0:00:05.4]}
24. Bf1 {[%clk 0:00:34.9]} 24... Ng6 {[%clk 0:00:03]} 25. Qf2 {[%clk 0:00:28.2]}
25... Rxd6 {[%clk 0:00:03.2]} 26. exd6 {[%clk 0:00:28.4]} 26... Rd7 {[%clk
0:00:03.2]} 27. f5 {[%clk 0:00:26.9]} 27... exf5 {[%clk 0:00:03]} 28. Nxf5
{[%clk 0:00:27.8]} 28... Be6 {[%clk 0:00:02.7]} 29. Qxb6 {[%clk 0:00:26.6]}
29... axb6 {[%clk 0:00:03.6]} 30. Bd3 {[%clk 0:00:18.7]} 30... Ne5 {[%clk
0:00:03.6]} 31. Ne7+ {[%clk 0:00:19.1]} 31... Kf8 {[%clk 0:00:03.6]} 32. Be4
{[%clk 0:00:19.9]} 32... Nc6 {[%clk 0:00:02.7]} 33. Nxc6 {[%clk 0:00:19.3]}
33... bxc6 {[%clk 0:00:03.1]} 34. Bxc6 {[%clk 0:00:20.2]} 34... Rd8 {[%clk
0:00:03.4]} 35. Kf2 {[%clk 0:00:19.1]} 35... f5 {[%clk 0:00:03.1]} 36. Ke3
{[%clk 0:00:19.5]} 36... Kf7 {[%clk 0:00:03.5]} 37. Rd2 {[%clk 0:00:15.5]} 37...
Kf6 {[%clk 0:00:03.9]} 38. b4 {[%clk 0:00:16.1]} 38... Ke5 {[%clk 0:00:04]} 39.
d7 {[%clk 0:00:16.8]} 39... f4+ {[%clk 0:00:03.9]} 40. Kf3 {[%clk 0:00:14.9]}
40... g5 {[%clk 0:00:04.1]} 41. a4 {[%clk 0:00:13]} 41... g4+ {[%clk 0:00:02.4]}
42. Kf2 {[%clk 0:00:13.4]} 42... Kf6 {[%clk 0:00:03]} 43. a5 {[%clk 0:00:12.9]}
43... bxa5 {[%clk 0:00:03]} 44. bxa5 {[%clk 0:00:13.7]} 44... Bc4 {[%clk
0:00:03.3]} 45. Rd4 {[%clk 0:00:13.2]} 45... Ba6 {[%clk 0:00:03]} 46. Rxf4+
{[%clk 0:00:13.8]} 46... Ke5 {[%clk 0:00:03.1]} 47. Rxg4 {[%clk 0:00:12.7]}
47... Kd6 {[%clk 0:00:03.5]} 48. Ba4 {[%clk 0:00:13.2]} 48... Rf8+ {[%clk
0:00:03.4]} 49. Kg3 {[%clk 0:00:13.2]} 49... Kc7 {[%clk 0:00:03.5]} 50. Re4
{[%clk 0:00:12.8]} 50... Bb7 {[%clk 0:00:03]} 51. Re8 {[%clk 0:00:13]} 1-0

[Event "Early-Titled-Tuesday-Blitz-October-03-2023"]
[Site "Chess.com"]
[Date "2023.10.03"]
[Round "6"]
[White "the_chess_child"]
[Black "Frolyanov_D"]
[Result "1-0"]
[WhiteElo "2858"]
[BlackElo "2674"]
[TimeControl "180+1"]
[EndTime "9:07:39 PDT"]
[Termination "the_chess_child won on time"]

1. e4 {[%clk 0:03:00.9]} 1... e5 {[%clk 0:02:59.7]} 2. Nf3 {[%clk 0:03:00.7]}
2... Nf6 {[%clk 0:03:00]} 3. d3 {[%clk 0:03:00.8]} 3... Nc6 {[%clk 0:02:59]} 4.
g3 {[%clk 0:03:00.9]} 4... Bc5 {[%clk 0:02:54.5]} 5. Bg2 {[%clk 0:03:00.2]} 5...
O-O {[%clk 0:02:53.9]} 6. O-O {[%clk 0:03:00.2]} 6... d6 {[%clk 0:02:51.8]} 7.
c3 {[%clk 0:02:54.2]} 7... h6 {[%clk 0:02:50]} 8. b4 {[%clk 0:02:53.7]} 8... Bb6
{[%clk 0:02:49.4]} 9. a4 {[%clk 0:02:54]} 9... a5 {[%clk 0:02:49]} 10. b5 {[%clk
0:02:54.4]} 10... Ne7 {[%clk 0:02:49]} 11. Nbd2 {[%clk 0:02:54.8]} 11... Nh7
{[%clk 0:02:45.7]} 12. Bb2 {[%clk 0:02:54.1]} 12... f5 {[%clk 0:02:44.4]} 13. d4
{[%clk 0:02:43.8]} 13... fxe4 {[%clk 0:02:39]} 14. Nxe4 {[%clk 0:02:43.4]} 14...
d5 {[%clk 0:02:37.9]} 15. Ned2 {[%clk 0:02:22.8]} 15... Bg4 {[%clk 0:02:33.8]}
16. Qb3 {[%clk 0:02:16.4]} 16... exd4 {[%clk 0:02:13.9]} 17. Nxd4 {[%clk
0:02:09.1]} 17... Ng5 {[%clk 0:02:10.1]} 18. f3 {[%clk 0:01:48.6]} 18... Bh3
{[%clk 0:02:02.8]} 19. Bxh3 {[%clk 0:01:41.8]} 19... Nxh3+ {[%clk 0:02:03.3]}
20. Kg2 {[%clk 0:01:42.4]} 20... Ng5 {[%clk 0:01:59.6]} 21. h4 {[%clk
0:01:31.3]} 21... Bxd4 {[%clk 0:01:58.9]} 22. cxd4 {[%clk 0:01:31.1]} 22... Ne6
{[%clk 0:01:52.7]} 23. Rae1 {[%clk 0:01:27.8]} 23... Rf6 {[%clk 0:01:51.6]} 24.
Re5 {[%clk 0:01:21.3]} 24... Ng6 {[%clk 0:01:48.7]} 25. Rxd5 {[%clk 0:01:21]}
25... Ngf4+ {[%clk 0:01:45.7]} 26. gxf4 {[%clk 0:01:15.8]} 26... Nxf4+ {[%clk
0:01:46.6]} 27. Kg3 {[%clk 0:01:11]} 27... Nxd5 {[%clk 0:01:38.2]} 28. Ne4
{[%clk 0:01:06.1]} 28... Rg6+ {[%clk 0:01:38.1]} 29. Kh3 {[%clk 0:01:06.5]}
29... Qd7+ {[%clk 0:01:37]} 30. Kh2 {[%clk 0:01:06.2]} 30... Qf5 {[%clk
0:01:33.2]} 31. Bc1 {[%clk 0:01:04]} 31... Kh8 {[%clk 0:01:26.7]} 32. Ng3 {[%clk
0:01:00.8]} 32... Qd7 {[%clk 0:01:22]} 33. h5 {[%clk 0:00:59]} 33... Rf6 {[%clk
0:01:15.9]} 34. Ne4 {[%clk 0:00:57.2]} 34... Rf5 {[%clk 0:01:15.1]} 35. Ng3
{[%clk 0:00:57.4]} 35... Rf7 {[%clk 0:01:07.7]} 36. f4 {[%clk 0:00:54.8]} 36...
Raf8 {[%clk 0:01:06.2]} 37. f5 {[%clk 0:00:55.2]} 37... c6 {[%clk 0:01:02.5]}
38. Ba3 {[%clk 0:00:52.3]} 38... Re8 {[%clk 0:01:01.7]} 39. bxc6 {[%clk
0:00:52.3]} 39... bxc6 {[%clk 0:01:00.6]} 40. Bc1 {[%clk 0:00:49.8]} 40... Qc7
{[%clk 0:00:54.7]} 41. Kh3 {[%clk 0:00:48.2]} 41... Rfe7 {[%clk 0:00:50.9]} 42.
Qf3 {[%clk 0:00:43.4]} 42... Nf6 {[%clk 0:00:40.8]} 43. Bf4 {[%clk 0:00:41.7]}
43... Qd7 {[%clk 0:00:39]} 44. Be5 {[%clk 0:00:41.7]} 44... Qd5 {[%clk
0:00:30.3]} 45. Qxd5 {[%clk 0:00:38.2]} 45... Nxd5 {[%clk 0:00:29.4]} 46. Rc1
{[%clk 0:00:38.1]} 46... Nb4 {[%clk 0:00:28]} 47. f6 {[%clk 0:00:37.5]} 47...
Rf7 {[%clk 0:00:13.6]} 48. fxg7+ {[%clk 0:00:37.2]} 48... Kh7 {[%clk 0:00:14.2]}
49. Ne4 {[%clk 0:00:34.9]} 49... Nd3 {[%clk 0:00:13.4]} 50. Rg1 {[%clk
0:00:29.4]} 50... Nxe5 {[%clk 0:00:11.9]} 51. dxe5 {[%clk 0:00:29.5]} 51... Rf3+
{[%clk 0:00:08.5]} 52. Kh2 {[%clk 0:00:28.1]} 52... Rf4 {[%clk 0:00:02.5]} 53.
Nf6+ {[%clk 0:00:28.2]} 53... Rxf6 {[%clk 0:00:02.9]} 54. exf6 {[%clk
0:00:29.1]} 54... Kg8 {[%clk 0:00:03.4]} 55. Rg6 {[%clk 0:00:29]} 55... Re2+
{[%clk 0:00:02.6]} 56. Kg3 {[%clk 0:00:29.1]} 56... Re3+ {[%clk 0:00:02.8]} 57.
Kf4 {[%clk 0:00:29.6]} 1-0